[Event "*** Titled Tuesday Blitz"]
[Site "Chess.com"]
[Date "2020.05.19"]
[Round "5"]
[White "PavelChernomordik"]
[Black "Papa12341234"]
[Result "0-1"]
[WhiteElo "2386"]
[BlackElo "2550"]
[TimeControl "180+1"]
[EndTime "12:56:41 PDT"]
[Termination "Papa12341234 won by resignation"]

1. e4 {[%clk 0:02:32.6]} 1... c5 {[%clk 0:02:59.1]} 2. Nc3 {[%clk 0:02:31.2]}
2... d6 {[%clk 0:02:59.1]} 3. f4 {[%clk 0:02:27.3]} 3... Nf6 {[%clk 0:02:58.8]}
4. Nf3 {[%clk 0:02:22.9]} 4... Nc6 {[%clk 0:02:56.1]} 5. Bb5 {[%clk 0:02:21.2]}
5... e6 {[%clk 0:02:54.1]} 6. O-O {[%clk 0:02:16.6]} 6... Be7 {[%clk 0:02:49.3]}
7. Bxc6+ {[%clk 0:02:12.3]} 7... bxc6 {[%clk 0:02:50.2]} 8. d3 {[%clk
0:02:12.6]} 8... O-O {[%clk 0:02:47]} 9. h3 {[%clk 0:02:13.5]} 9... Qc7 {[%clk
0:02:45]} 10. Be3 {[%clk 0:02:12]} 10... d5 {[%clk 0:02:41.5]} 11. Bd2 {[%clk
0:02:09.1]} 11... dxe4 {[%clk 0:02:37.5]} 12. dxe4 {[%clk 0:02:05.2]} 12... Rd8
{[%clk 0:02:37.2]} 13. Qe2 {[%clk 0:02:04]} 13... a5 {[%clk 0:02:35.1]} 14. Rfe1
{[%clk 0:02:04]} 14... Ba6 {[%clk 0:02:35.1]} 15. Qf2 {[%clk 0:02:04.1]} 15...
Rab8 {[%clk 0:02:32.5]} 16. b3 {[%clk 0:02:03]} 16... c4 {[%clk 0:02:31]} 17.
Be3 {[%clk 0:02:00.5]} 17... cxb3 {[%clk 0:02:30.4]} 18. cxb3 {[%clk 0:01:58.5]}
18... Bb4 {[%clk 0:02:30.8]} 19. Qc2 {[%clk 0:01:50.3]} 19... Bd3 {[%clk
0:02:26.4]} 20. Qb2 {[%clk 0:01:49.2]} 20... Nxe4 {[%clk 0:02:19]} 21. Nxe4
{[%clk 0:01:43.7]} 21... Bxe4 {[%clk 0:02:19.9]} 22. Rf1 {[%clk 0:01:41.7]}
22... f6 {[%clk 0:02:11.1]} 23. a3 {[%clk 0:01:38.3]} 23... Be7 {[%clk
0:02:09.8]} 24. Nd4 {[%clk 0:01:35.9]} 24... Kf7 {[%clk 0:02:05]} 25. Rae1
{[%clk 0:01:22.9]} 25... c5 {[%clk 0:02:04.8]} 26. Ne2 {[%clk 0:01:10.7]} 26...
c4 {[%clk 0:02:04.4]} 27. Nc3 {[%clk 0:01:05.8]} 27... Bd3 {[%clk 0:02:03.6]}
28. Rf2 {[%clk 0:01:04]} 28... Rxb3 {[%clk 0:02:03.3]} 29. Qa1 {[%clk
0:01:01.1]} 29... Rxa3 {[%clk 0:02:02.4]} 30. Qc1 {[%clk 0:00:59.6]} 30... Rb3
{[%clk 0:01:54.6]} 31. g4 {[%clk 0:00:51.2]} 31... Bb4 {[%clk 0:01:49.9]} 32.
Bd2 {[%clk 0:00:51.1]} 32... Bc5 {[%clk 0:01:47.6]} 33. Be3 {[%clk 0:00:49.8]}
33... Bxe3 {[%clk 0:01:47.8]} 34. Rxe3 {[%clk 0:00:48.3]} 34... Rdb8 {[%clk
0:01:44.2]} 35. Kh2 {[%clk 0:00:45.9]} 35... Qc6 {[%clk 0:01:39.3]} 36. g5
{[%clk 0:00:39.8]} 36... a4 {[%clk 0:01:33.8]} 37. gxf6 {[%clk 0:00:37.1]} 37...
gxf6 {[%clk 0:01:34.7]} 38. Rg3 {[%clk 0:00:36.3]} 38... Rb1 {[%clk 0:01:31.3]}
39. Nxb1 {[%clk 0:00:33.3]} 39... Rxb1 {[%clk 0:01:32.2]} 40. Qxb1 {[%clk
0:00:28.4]} 40... Bxb1 {[%clk 0:01:33.1]} 41. Rfg2 {[%clk 0:00:28.7]} 41...
Qxg2+ {[%clk 0:01:25.6]} 42. Kxg2 {[%clk 0:00:25.7]} 42... Bd3 {[%clk
0:01:25.3]} 43. Kf2 {[%clk 0:00:23.8]} 43... a3 {[%clk 0:01:25.3]} 44. Rg1
{[%clk 0:00:18.5]} 44... a2 {[%clk 0:01:25.6]} 45. Ra1 {[%clk 0:00:17.8]} 45...
Bb1 {[%clk 0:01:26.1]} 46. Ke3 {[%clk 0:00:17.8]} 46... e5 {[%clk 0:01:25.7]}
47. fxe5 {[%clk 0:00:17]} 47... fxe5 {[%clk 0:01:26.6]} 48. h4 {[%clk
0:00:16.9]} 48... Kf6 {[%clk 0:01:26.8]} 49. Kd2 {[%clk 0:00:17.1]} 49... Kf5
{[%clk 0:01:27.1]} 50. Kc3 {[%clk 0:00:17.2]} 50... Kf4 {[%clk 0:01:27.3]} 51.
Kxc4 {[%clk 0:00:15.7]} 51... e4 {[%clk 0:01:27.4]} 52. Kc3 {[%clk 0:00:15.6]}
52... Kf3 {[%clk 0:01:27]} 53. Kb3 {[%clk 0:00:15.9]} 53... e3 {[%clk
0:01:27.3]} 0-1

[Event "*** Titled Tuesday Blitz"]
[Site "Chess.com"]
[Date "2020.05.19"]
[Round "5"]
[White "Godzillator"]
[Black "TheBigBadChessDad"]
[Result "1-0"]
[WhiteElo "2449"]
[BlackElo "2252"]
[TimeControl "180+1"]
[EndTime "12:56:41 PDT"]
[Termination "Godzillator won on time"]

1. d4 {[%clk 0:03:00.9]} 1... d5 {[%clk 0:02:59.6]} 2. c4 {[%clk 0:03:01.2]}
2... e6 {[%clk 0:02:59]} 3. cxd5 {[%clk 0:02:59.8]} 3... exd5 {[%clk 0:02:58.1]}
4. Nc3 {[%clk 0:03:00.1]} 4... c6 {[%clk 0:02:57.2]} 5. Qc2 {[%clk 0:02:59.8]}
5... g6 {[%clk 0:02:54.9]} 6. Bf4 {[%clk 0:02:58.4]} 6... Bf5 {[%clk 0:02:53.9]}
7. Qd2 {[%clk 0:02:58.7]} 7... Nf6 {[%clk 0:02:52.3]} 8. e3 {[%clk 0:02:59.2]}
8... Ne4 {[%clk 0:02:47.5]} 9. Nxe4 {[%clk 0:02:58.5]} 9... Bxe4 {[%clk
0:02:47.7]} 10. Ne2 {[%clk 0:02:57.9]} 10... Qb6 {[%clk 0:02:43.5]} 11. a3
{[%clk 0:02:57.5]} 11... Nd7 {[%clk 0:02:38.3]} 12. Ng3 {[%clk 0:02:57.4]} 12...
h6 {[%clk 0:02:19.6]} 13. Nxe4 {[%clk 0:02:56.8]} 13... dxe4 {[%clk 0:02:19.1]}
14. Bc4 {[%clk 0:02:55.8]} 14... Nf6 {[%clk 0:02:10.7]} 15. Be5 {[%clk
0:02:53.8]} 15... Bg7 {[%clk 0:02:10.6]} 16. Qc2 {[%clk 0:02:50.7]} 16... O-O
{[%clk 0:02:06.5]} 17. O-O {[%clk 0:02:49.7]} 17... Rfe8 {[%clk 0:02:02.8]} 18.
b4 {[%clk 0:02:48.7]} 18... Nd5 {[%clk 0:01:44.3]} 19. Bxg7 {[%clk 0:02:47.2]}
19... Kxg7 {[%clk 0:01:45.2]} 20. Bxd5 {[%clk 0:02:45.8]} 20... cxd5 {[%clk
0:01:44.8]} 21. Rfc1 {[%clk 0:02:43.8]} 21... Rac8 {[%clk 0:01:41.1]} 22. Qb3
{[%clk 0:02:43.4]} 22... Qb5 {[%clk 0:01:24.5]} 23. Rc5 {[%clk 0:02:37.2]} 23...
Rxc5 {[%clk 0:01:21.1]} 24. dxc5 {[%clk 0:02:37.5]} 24... Qc6 {[%clk 0:01:17.7]}
25. Rd1 {[%clk 0:02:33.1]} 25... Rd8 {[%clk 0:01:17.1]} 26. h3 {[%clk
0:02:28.6]} 26... a6 {[%clk 0:01:10.2]} 27. a4 {[%clk 0:02:18.4]} 27... f5
{[%clk 0:01:04.1]} 28. Qc3+ {[%clk 0:02:17.9]} 28... Qf6 {[%clk 0:01:02.3]} 29.
Rd4 {[%clk 0:02:16.4]} 29... g5 {[%clk 0:00:54.1]} 30. b5 {[%clk 0:02:16.5]}
30... axb5 {[%clk 0:00:53.7]} 31. axb5 {[%clk 0:02:16.8]} 31... Kg6 {[%clk
0:00:48.8]} 32. Qb3 {[%clk 0:02:08.7]} 32... Qe6 {[%clk 0:00:42.5]} 33. Qc2
{[%clk 0:02:07.4]} 33... f4 {[%clk 0:00:40.6]} 34. c6 {[%clk 0:02:00.1]} 34...
bxc6 {[%clk 0:00:39.7]} 35. bxc6 {[%clk 0:02:00.3]} 35... fxe3 {[%clk
0:00:35.2]} 36. fxe3 {[%clk 0:01:53.7]} 36... Rc8 {[%clk 0:00:34.8]} 37. c7
{[%clk 0:01:51.2]} 37... Qd6 {[%clk 0:00:24.8]} 38. Qxe4+ {[%clk 0:01:48.7]}
38... Kg7 {[%clk 0:00:13.4]} 39. Qxd5 {[%clk 0:01:33.5]} 39... Qxd5 {[%clk
0:00:13.2]} 40. Rxd5 {[%clk 0:01:33.6]} 40... Rxc7 {[%clk 0:00:14.1]} 41. Kf2
{[%clk 0:01:33.4]} 41... Rc6 {[%clk 0:00:11.6]} 42. Kf3 {[%clk 0:01:33.3]} 42...
Kf6 {[%clk 0:00:10.9]} 43. Rd8 {[%clk 0:01:31.5]} 43... Rc4 {[%clk 0:00:07.4]}
44. Rd6+ {[%clk 0:01:15.2]} 44... Kg7 {[%clk 0:00:07.5]} 45. Ra6 {[%clk
0:01:14.3]} 45... h5 {[%clk 0:00:06.6]} 46. g3 {[%clk 0:01:09.2]} 46... g4+
{[%clk 0:00:06.2]} 47. hxg4 {[%clk 0:01:09.1]} 47... Rxg4 {[%clk 0:00:05.5]} 48.
e4 {[%clk 0:01:08.4]} 1-0

[Event "*** Titled Tuesday Blitz"]
[Site "Chess.com"]
[Date "2020.05.19"]
[Round "5"]
[White "spela91"]
[Black "tomozupan"]
[Result "0-1"]
[WhiteElo "2022"]
[BlackElo "2198"]
[TimeControl "180+1"]
[EndTime "12:56:41 PDT"]
[Termination "tomozupan won on time"]

1. d4 {[%clk 0:02:48.5]} 1... Nf6 {[%clk 0:02:44.6]} 2. c4 {[%clk 0:02:47.9]}
2... g6 {[%clk 0:02:44.3]} 3. Nc3 {[%clk 0:02:46.9]} 3... d5 {[%clk 0:02:44]} 4.
Nf3 {[%clk 0:02:46.4]} 4... Bg7 {[%clk 0:02:43.8]} 5. cxd5 {[%clk 0:02:46.5]}
5... Nxd5 {[%clk 0:02:43.8]} 6. Qb3 {[%clk 0:02:37.4]} 6... Nxc3 {[%clk
0:02:37.2]} 7. bxc3 {[%clk 0:02:37.2]} 7... O-O {[%clk 0:02:35.5]} 8. e3 {[%clk
0:02:36.2]} 8... c5 {[%clk 0:02:34.8]} 9. Ba3 {[%clk 0:02:35.8]} 9... cxd4
{[%clk 0:02:33.9]} 10. cxd4 {[%clk 0:02:34.2]} 10... Nc6 {[%clk 0:02:32.7]} 11.
Be2 {[%clk 0:02:29.2]} 11... Qa5+ {[%clk 0:02:25.7]} 12. Nd2 {[%clk 0:02:24.3]}
12... Be6 {[%clk 0:02:25.1]} 13. Qb2 {[%clk 0:02:18.2]} 13... Rad8 {[%clk
0:02:15.5]} 14. O-O {[%clk 0:01:59.8]} 14... Nxd4 {[%clk 0:02:11.5]} 15. exd4
{[%clk 0:01:09.1]} 15... Bxd4 {[%clk 0:01:54.1]} 16. Qb4 {[%clk 0:01:06.4]}
16... Qxb4 {[%clk 0:01:47.2]} 17. Bxb4 {[%clk 0:01:06.5]} 17... Bxa1 {[%clk
0:01:46.6]} 18. Rxa1 {[%clk 0:01:05.3]} 18... Rd7 {[%clk 0:01:46.4]} 19. Nf3
{[%clk 0:01:01.4]} 19... Rfd8 {[%clk 0:01:43]} 20. Ne5 {[%clk 0:00:40.1]} 20...
Rc7 {[%clk 0:01:42.3]} 21. a3 {[%clk 0:00:23.6]} 21... b6 {[%clk 0:01:38.8]} 22.
Ba6 {[%clk 0:00:19.4]} 22... f6 {[%clk 0:01:36.5]} 23. Nf3 {[%clk 0:00:16.6]}
23... Bd5 {[%clk 0:01:29.6]} 24. Rd1 {[%clk 0:00:13.6]} 24... Kf7 {[%clk
0:01:23]} 25. g3 {[%clk 0:00:07.5]} 25... Bxf3 {[%clk 0:01:20.1]} 26. Rxd8
{[%clk 0:00:06.2]} 26... Rc1+ {[%clk 0:01:19.7]} 27. Bf1 {[%clk 0:00:06.7]}
27... Be2 {[%clk 0:01:19.5]} 28. Kg2 {[%clk 0:00:06.6]} 28... Bxf1+ {[%clk
0:01:19.6]} 29. Kf3 {[%clk 0:00:06.3]} 29... a5 {[%clk 0:01:18.1]} 30. Bd2
{[%clk 0:00:04.5]} 30... Ra1 {[%clk 0:01:11.4]} 31. Rb8 {[%clk 0:00:03.1]} 31...
Rxa3+ {[%clk 0:01:10.7]} 32. Be3 {[%clk 0:00:02.7]} 32... b5 {[%clk 0:01:10.3]}
33. Ra8 {[%clk 0:00:01.9]} 33... a4 {[%clk 0:01:09.4]} 34. Kf4 {[%clk
0:00:01.7]} 34... Rc3 {[%clk 0:01:09.1]} 35. h4 {[%clk 0:00:02.2]} 35... a3
{[%clk 0:01:08.3]} 36. Ra5 {[%clk 0:00:02]} 36... b4 {[%clk 0:01:07.8]} 37. Bc5
{[%clk 0:00:02.4]} 37... a2 {[%clk 0:01:06.4]} 38. Bxb4 {[%clk 0:00:02.3]} 38...
Rc4+ {[%clk 0:01:06.1]} 39. Kf3 {[%clk 0:00:01.6]} 39... Rxb4 {[%clk 0:01:05.2]}
40. Rxa2 {[%clk 0:00:02.4]} 40... Rb3+ {[%clk 0:01:05]} 41. Kg4 {[%clk
0:00:02.6]} 41... Bc4 {[%clk 0:01:04.2]} 42. h5 {[%clk 0:00:01.6]} 42... Be6+
{[%clk 0:01:03.5]} 43. Kh4 {[%clk 0:00:01.3]} 43... Rb4+ {[%clk 0:01:02.9]} 0-1

[Event "*** Titled Tuesday Blitz"]
[Site "Chess.com"]
[Date "2020.05.19"]
[Round "5"]
[White "louis198"]
[Black "konradrutkowski"]
[Result "1-0"]
[WhiteElo "2497"]
[BlackElo "2303"]
[TimeControl "180+1"]
[EndTime "12:56:42 PDT"]
[Termination "louis198 won by checkmate"]

1. d4 {[%clk 0:02:55]} 1... Nf6 {[%clk 0:02:41.7]} 2. Bf4 {[%clk 0:02:53.4]}
2... d6 {[%clk 0:02:38]} 3. e3 {[%clk 0:02:53.9]} 3... g6 {[%clk 0:02:38.2]} 4.
h3 {[%clk 0:02:54.2]} 4... Bg7 {[%clk 0:02:38.8]} 5. Nf3 {[%clk 0:02:53.6]} 5...
O-O {[%clk 0:02:39.2]} 6. Bc4 {[%clk 0:02:53.8]} 6... c5 {[%clk 0:02:39.5]} 7.
O-O {[%clk 0:02:53.4]} 7... Nc6 {[%clk 0:02:39.5]} 8. c3 {[%clk 0:02:53.4]} 8...
cxd4 {[%clk 0:02:39.2]} 9. exd4 {[%clk 0:02:53.4]} 9... Nh5 {[%clk 0:02:27.9]}
10. Bh2 {[%clk 0:02:52.8]} 10... e5 {[%clk 0:02:28.5]} 11. dxe5 {[%clk
0:02:43.7]} 11... dxe5 {[%clk 0:02:25.4]} 12. Qe2 {[%clk 0:02:42.6]} 12... h6
{[%clk 0:02:02.5]} 13. Rd1 {[%clk 0:02:41.8]} 13... Qc7 {[%clk 0:01:59.4]} 14.
Na3 {[%clk 0:02:41]} 14... a6 {[%clk 0:01:57.4]} 15. Nc2 {[%clk 0:02:29.7]}
15... Nf4 {[%clk 0:01:56.6]} 16. Bxf4 {[%clk 0:02:28.3]} 16... exf4 {[%clk
0:01:56.4]} 17. Nb4 {[%clk 0:02:24.2]} 17... Nxb4 {[%clk 0:01:54.4]} 18. cxb4
{[%clk 0:02:24.7]} 18... Bf5 {[%clk 0:01:53.5]} 19. Rac1 {[%clk 0:02:24]} 19...
Qb6 {[%clk 0:01:50.1]} 20. Qd2 {[%clk 0:01:44.6]} 20... Rad8 {[%clk 0:01:42.5]}
21. Qxf4 {[%clk 0:01:44.2]} 21... Bxb2 {[%clk 0:01:41.7]} 22. Rxd8 {[%clk
0:01:32.1]} 22... Rxd8 {[%clk 0:01:40.5]} 23. Re1 {[%clk 0:01:32.3]} 23... Bg7
{[%clk 0:01:25.2]} 24. Re7 {[%clk 0:01:29]} 24... Rf8 {[%clk 0:01:24.5]} 25. Nh4
{[%clk 0:00:58.9]} 25... Be6 {[%clk 0:01:14.6]} 26. Bxe6 {[%clk 0:00:36.8]}
26... fxe6 {[%clk 0:01:12.8]} 27. Qg3 {[%clk 0:00:30.3]} 27... g5 {[%clk
0:01:11.2]} 28. Ng6 {[%clk 0:00:29.6]} 28... Rd8 {[%clk 0:00:50.8]} 29. Qf3
{[%clk 0:00:26.8]} 29... Kh7 {[%clk 0:00:38.1]} 30. Nf8+ {[%clk 0:00:18.6]}
30... Kh8 {[%clk 0:00:29.8]} 31. Nxe6 {[%clk 0:00:18.7]} 31... Rd1+ {[%clk
0:00:28.5]} 32. Qxd1 {[%clk 0:00:18.1]} 32... Bf6 {[%clk 0:00:27.5]} 33. Re8+
{[%clk 0:00:14.9]} 33... Kh7 {[%clk 0:00:27.7]} 34. Qd3# {[%clk 0:00:14.2]} 1-0

[Event "*** Titled Tuesday Blitz"]
[Site "Chess.com"]
[Date "2020.05.19"]
[Round "5"]
[White "mbachez"]
[Black "chenxiaoyuer"]
[Result "1-0"]
[WhiteElo "2491"]
[BlackElo "2289"]
[TimeControl "180+1"]
[EndTime "12:56:42 PDT"]
[Termination "mbachez won by checkmate"]

1. e4 {[%clk 0:03:00.9]} 1... c5 {[%clk 0:02:56.5]} 2. Nf3 {[%clk 0:03:00.4]}
2... d6 {[%clk 0:02:55.8]} 3. Bc4 {[%clk 0:02:59.7]} 3... Nc6 {[%clk 0:02:52.5]}
4. c3 {[%clk 0:02:59]} 4... Nf6 {[%clk 0:02:48.8]} 5. Qe2 {[%clk 0:02:56.8]}
5... Bg4 {[%clk 0:02:42]} 6. h3 {[%clk 0:02:56.3]} 6... Bxf3 {[%clk 0:02:35.2]}
7. Qxf3 {[%clk 0:02:57.2]} 7... a6 {[%clk 0:02:32.5]} 8. Bb3 {[%clk 0:02:56.7]}
8... e6 {[%clk 0:02:25.4]} 9. O-O {[%clk 0:02:56.4]} 9... Be7 {[%clk 0:02:23.1]}
10. Qe2 {[%clk 0:02:53.1]} 10... O-O {[%clk 0:02:20.7]} 11. d3 {[%clk
0:02:53.1]} 11... b5 {[%clk 0:02:16.4]} 12. Nd2 {[%clk 0:02:52.8]} 12... d5
{[%clk 0:02:03.5]} 13. Bc2 {[%clk 0:02:48.5]} 13... Qb6 {[%clk 0:01:51.1]} 14.
Nf3 {[%clk 0:02:43.7]} 14... Rfe8 {[%clk 0:01:40.1]} 15. Re1 {[%clk 0:02:40.6]}
15... Bf8 {[%clk 0:01:25.5]} 16. Bg5 {[%clk 0:02:38.8]} 16... Nd7 {[%clk
0:01:07.1]} 17. Rad1 {[%clk 0:02:32.5]} 17... h6 {[%clk 0:01:02.9]} 18. Bh4
{[%clk 0:02:31.4]} 18... d4 {[%clk 0:00:56.6]} 19. Bb1 {[%clk 0:02:22.9]} 19...
dxc3 {[%clk 0:00:52.7]} 20. bxc3 {[%clk 0:02:22.6]} 20... b4 {[%clk 0:00:49.9]}
21. Qc2 {[%clk 0:02:11.8]} 21... bxc3 {[%clk 0:00:46.4]} 22. Qxc3 {[%clk
0:02:10.9]} 22... Nd4 {[%clk 0:00:45.8]} 23. Nd2 {[%clk 0:02:08.5]} 23... Qb4
{[%clk 0:00:43.4]} 24. Qc1 {[%clk 0:01:48.6]} 24... Nb6 {[%clk 0:00:36.8]} 25.
Bg3 {[%clk 0:01:34.5]} 25... Na4 {[%clk 0:00:34.8]} 26. Nc4 {[%clk 0:01:34.1]}
26... Nc3 {[%clk 0:00:26.3]} 27. Rd2 {[%clk 0:01:31.2]} 27... Na4 {[%clk
0:00:21.2]} 28. Bc2 {[%clk 0:01:28.4]} 28... Nxc2 {[%clk 0:00:20.5]} 29. Rxc2
{[%clk 0:01:25.7]} 29... f6 {[%clk 0:00:15.8]} 30. e5 {[%clk 0:01:23.8]} 30...
f5 {[%clk 0:00:15.2]} 31. Kh1 {[%clk 0:01:18.8]} 31... Rab8 {[%clk 0:00:14.7]}
32. Nd6 {[%clk 0:01:09.7]} 32... Red8 {[%clk 0:00:11.6]} 33. Rc4 {[%clk
0:01:08.3]} 33... Qa5 {[%clk 0:00:09.2]} 34. f4 {[%clk 0:01:02.4]} 34... Rb4
{[%clk 0:00:07.3]} 35. a3 {[%clk 0:00:58.1]} 35... Rxc4 {[%clk 0:00:06.8]} 36.
Qxc4 {[%clk 0:00:58.1]} 36... Bxd6 {[%clk 0:00:03.4]} 37. Qxe6+ {[%clk
0:00:57.1]} 37... Kh8 {[%clk 0:00:03.7]} 38. exd6 {[%clk 0:00:57.1]} 38... Qc3
{[%clk 0:00:03.6]} 39. Bh4 {[%clk 0:00:55]} 39... Ra8 {[%clk 0:00:02.6]} 40. d7
{[%clk 0:00:54.7]} 40... Kh7 {[%clk 0:00:02.2]} 41. Qxf5+ {[%clk 0:00:54.4]}
41... Kg8 {[%clk 0:00:03.1]} 42. Re8+ {[%clk 0:00:52.7]} 42... Rxe8 {[%clk
0:00:04]} 43. dxe8=Q# {[%clk 0:00:52.6]} 1-0

[Event "*** Titled Tuesday Blitz"]
[Site "Chess.com"]
[Date "2020.05.19"]
[Round "5"]
[White "MomchilPetkov"]
[Black "Igrok3069"]
[Result "0-1"]
[WhiteElo "2555"]
[BlackElo "2770"]
[TimeControl "180+1"]
[EndTime "12:56:43 PDT"]
[Termination "Igrok3069 won by resignation"]

1. d4 {[%clk 0:03:00.2]} 1... d5 {[%clk 0:02:59.8]} 2. c4 {[%clk 0:03:00]} 2...
c6 {[%clk 0:03:00.3]} 3. Nf3 {[%clk 0:02:59.7]} 3... Nf6 {[%clk 0:03:00.5]} 4.
Qc2 {[%clk 0:03:00]} 4... g6 {[%clk 0:02:52.2]} 5. Bf4 {[%clk 0:02:58.2]} 5...
dxc4 {[%clk 0:02:46.9]} 6. Qxc4 {[%clk 0:02:50.8]} 6... Bg7 {[%clk 0:02:46.7]}
7. e3 {[%clk 0:02:47.3]} 7... O-O {[%clk 0:02:45.2]} 8. Be2 {[%clk 0:02:43.8]}
8... Be6 {[%clk 0:02:43.7]} 9. Qc2 {[%clk 0:02:39.3]} 9... Nbd7 {[%clk
0:02:42.6]} 10. O-O {[%clk 0:02:38]} 10... Bf5 {[%clk 0:02:38.8]} 11. Qb3 {[%clk
0:02:32.5]} 11... Qb6 {[%clk 0:02:36]} 12. Nbd2 {[%clk 0:02:30.4]} 12... Nh5
{[%clk 0:02:25]} 13. Bg5 {[%clk 0:02:27]} 13... Rfe8 {[%clk 0:02:16.7]} 14. Rac1
{[%clk 0:01:55.4]} 14... h6 {[%clk 0:02:14.8]} 15. Bh4 {[%clk 0:01:55.1]} 15...
g5 {[%clk 0:01:58.6]} 16. Bg3 {[%clk 0:01:49.5]} 16... Nxg3 {[%clk 0:01:57]} 17.
hxg3 {[%clk 0:01:50]} 17... e5 {[%clk 0:01:50.2]} 18. Nc4 {[%clk 0:01:18.4]}
18... Qxb3 {[%clk 0:01:48.7]} 19. axb3 {[%clk 0:01:19.3]} 19... exd4 {[%clk
0:01:42.1]} 20. Nd6 {[%clk 0:01:18]} 20... d3 {[%clk 0:01:42.4]} 21. Bd1 {[%clk
0:01:07.7]} 21... Bg6 {[%clk 0:01:42.1]} 22. Nxe8 {[%clk 0:01:06.7]} 22... Rxe8
{[%clk 0:01:40.6]} 23. Ra1 {[%clk 0:00:54]} 23... a6 {[%clk 0:01:33.2]} 24. Ra2
{[%clk 0:00:54.5]} 24... c5 {[%clk 0:01:28]} 25. Nd2 {[%clk 0:00:54.5]} 25...
Ne5 {[%clk 0:01:23.9]} 26. Re1 {[%clk 0:00:42.9]} 26... Nc6 {[%clk 0:01:22.3]}
27. Bf3 {[%clk 0:00:37.1]} 27... Nb4 {[%clk 0:01:21.8]} 28. Ra5 {[%clk
0:00:35.5]} 28... b6 {[%clk 0:01:21.5]} 29. Ra4 {[%clk 0:00:34.6]} 29... b5
{[%clk 0:01:14.8]} 30. Ra5 {[%clk 0:00:24.9]} 30... Bxb2 {[%clk 0:01:13.2]} 31.
Nb1 {[%clk 0:00:25.2]} 31... c4 {[%clk 0:01:01.5]} 32. bxc4 {[%clk 0:00:25.1]}
32... bxc4 {[%clk 0:01:02.4]} 33. Ra4 {[%clk 0:00:23.4]} 33... Rb8 {[%clk
0:01:01.5]} 34. e4 {[%clk 0:00:14.8]} 34... c3 {[%clk 0:00:59.1]} 35. Nxc3
{[%clk 0:00:13.5]} 35... Bxc3 {[%clk 0:00:58.5]} 36. Rd1 {[%clk 0:00:14.4]}
36... d2 {[%clk 0:00:56.2]} 37. Ra3 {[%clk 0:00:14.1]} 37... Rc8 {[%clk
0:00:55]} 38. Bg4 {[%clk 0:00:14.2]} 38... Rc7 {[%clk 0:00:48.8]} 39. f3 {[%clk
0:00:14.5]} 39... Nc2 {[%clk 0:00:43.1]} 40. Ra2 {[%clk 0:00:13.8]} 40... Ne3
{[%clk 0:00:42]} 41. Raxd2 {[%clk 0:00:14.2]} 41... Bxd2 {[%clk 0:00:41.4]} 42.
Rxd2 {[%clk 0:00:15.1]} 0-1

[Event "*** Titled Tuesday Blitz"]
[Site "Chess.com"]
[Date "2020.05.19"]
[Round "5"]
[White "stolencandy13"]
[Black "bakki78"]
[Result "0-1"]
[WhiteElo "2556"]
[BlackElo "2754"]
[TimeControl "180+1"]
[EndTime "12:56:43 PDT"]
[Termination "bakki78 won by checkmate"]

1. e4 {[%clk 0:03:00.9]} 1... c5 {[%clk 0:02:59.3]} 2. Nf3 {[%clk 0:02:58.8]}
2... Nc6 {[%clk 0:02:58.8]} 3. d4 {[%clk 0:02:58.4]} 3... cxd4 {[%clk
0:02:58.2]} 4. Nxd4 {[%clk 0:02:59.3]} 4... Nf6 {[%clk 0:02:58.4]} 5. Nc3 {[%clk
0:02:56.4]} 5... d6 {[%clk 0:02:58.8]} 6. Bg5 {[%clk 0:02:49.9]} 6... e6 {[%clk
0:02:58.8]} 7. Qd2 {[%clk 0:02:47.7]} 7... a6 {[%clk 0:02:59]} 8. O-O-O {[%clk
0:02:45.7]} 8... Bd7 {[%clk 0:02:59.2]} 9. f3 {[%clk 0:02:42.4]} 9... b5 {[%clk
0:02:55.5]} 10. Kb1 {[%clk 0:02:38.6]} 10... h6 {[%clk 0:02:43.3]} 11. Be3
{[%clk 0:02:35.8]} 11... Na5 {[%clk 0:02:43.2]} 12. Bd3 {[%clk 0:02:29.2]} 12...
b4 {[%clk 0:02:32.1]} 13. Nce2 {[%clk 0:02:24]} 13... e5 {[%clk 0:02:32.1]} 14.
Nb3 {[%clk 0:02:20.5]} 14... Nxb3 {[%clk 0:02:31.6]} 15. axb3 {[%clk 0:02:11.7]}
15... a5 {[%clk 0:02:28.5]} 16. h4 {[%clk 0:01:56.3]} 16... Be7 {[%clk
0:02:21.1]} 17. g4 {[%clk 0:01:54.4]} 17... a4 {[%clk 0:02:21.5]} 18. Qxb4
{[%clk 0:01:47.5]} 18... Rb8 {[%clk 0:02:16.7]} 19. Qc3 {[%clk 0:01:46.1]} 19...
axb3 {[%clk 0:02:15.9]} 20. cxb3 {[%clk 0:01:44.8]} 20... O-O {[%clk 0:02:11.6]}
21. Bc4 {[%clk 0:01:44.1]} 21... Be6 {[%clk 0:01:59.2]} 22. g5 {[%clk
0:01:42.4]} 22... Bxc4 {[%clk 0:01:58.5]} 23. bxc4 {[%clk 0:01:29.1]} 23... Nh5
{[%clk 0:01:58.2]} 24. gxh6 {[%clk 0:01:26.2]} 24... g6 {[%clk 0:01:58.1]} 25.
f4 {[%clk 0:01:20.2]} 25... Qc8 {[%clk 0:01:49.6]} 26. f5 {[%clk 0:01:18.9]}
26... Qa6 {[%clk 0:01:49.5]} 27. Rhg1 {[%clk 0:01:10.2]} 27... Kh7 {[%clk
0:01:49.6]} 28. Ng3 {[%clk 0:00:51.9]} 28... Nxg3 {[%clk 0:01:25]} 29. Rxg3
{[%clk 0:00:52.8]} 29... Rfc8 {[%clk 0:01:24.7]} 30. fxg6+ {[%clk 0:00:48.4]}
30... fxg6 {[%clk 0:01:24.1]} 31. h5 {[%clk 0:00:49]} 31... g5 {[%clk
0:01:23.3]} 32. Rc1 {[%clk 0:00:44.3]} 32... Ra8 {[%clk 0:01:19.9]} 33. c5
{[%clk 0:00:39.8]} 33... Qa2+ {[%clk 0:01:16.6]} 34. Kc2 {[%clk 0:00:39.3]}
34... Ra4 {[%clk 0:01:17.1]} 35. Kd1 {[%clk 0:00:34.6]} 35... Qf7 {[%clk
0:01:14.4]} 36. Kd2 {[%clk 0:00:31.5]} 36... Rxe4 {[%clk 0:01:12.7]} 37. Qd3
{[%clk 0:00:27.5]} 37... d5 {[%clk 0:01:10.5]} 38. Rc4 {[%clk 0:00:27.3]} 38...
Qf5 {[%clk 0:01:05.9]} 39. Rxe4 {[%clk 0:00:24.9]} 39... dxe4 {[%clk 0:01:05.2]}
40. Qa6 {[%clk 0:00:25]} 40... Rd8+ {[%clk 0:01:03]} 41. Ke2 {[%clk 0:00:24.9]}
41... Bf6 {[%clk 0:00:59.8]} 42. Qb6 {[%clk 0:00:14.4]} 42... g4 {[%clk
0:00:57]} 43. c6 {[%clk 0:00:12.7]} 43... Qe6 {[%clk 0:00:57]} 44. c7 {[%clk
0:00:11.2]} 44... Qc4+ {[%clk 0:00:56.9]} 45. Kf2 {[%clk 0:00:09.5]} 45... Rd1
{[%clk 0:00:57.3]} 46. Kg2 {[%clk 0:00:07.1]} 46... Qf1+ {[%clk 0:00:57]} 47.
Kh2 {[%clk 0:00:07.5]} 47... Qh1# {[%clk 0:00:57]} 0-1